fUST/lending_fUST_20260109
["ID","MTS","AMOUNT","RATE_DAILY","PERIOD"]
[401087777,1767915038992,-2000.0,0.00014916,2]
[401087778,1767915039002,-864.0,0.0001505,2]
[401087779,1767915039012,-170.598297,0.00015068,2]
[401087780,1767915039021,-1841.99,0.0001529,2]
[401087781,1767915039036,-1200.0,0.00015316,2]
[401087782,1767915039046,-2000.0,0.00015342,2]
[401087783,1767915039055,-2000.0,0.00015342,2]
[401087784,1767915039065,-2000.0,0.00015342,2]
[401087786,1767915039075,-1000.0,0.000154,2]
[401087787,1767915039085,-2500.0,0.00015464,2]
[401087788,1767915039095,-1500.0,0.00015864,2]
[401087789,1767915039106,-2500.0,0.0001589,2]
[401087790,1767915039115,-2500.0,0.0001589,2]
[401087791,1767915039126,-395.64095761,0.0001589,2]
[401087792,1767915039136,-8147.3228475,0.00016,2]
[401087793,1767915039145,-3000.0,0.00016012,2]
[401087794,1767915039155,-823.0,0.00016122,2]
[401087795,1767915039164,-379.07331938,0.00016193,2]
[401087796,1767915039174,-1208.71132532,0.00016412,2]
[401087797,1767915039184,-500.0,0.00016438,2]
[401087798,1767915039193,-164.10892372,0.00016438,2]
[401087799,1767915039203,-3000.0,0.00016438,2]
[401087800,1767915039213,-3000.0,0.00016438,2]
[401087801,1767915039222,-1000.0,0.00016555,2]
[401087802,1767915039232,-3500.0,0.0001656,2]
[401087803,1767915039242,-1167.21136956,0.00016986,2]
[401087804,1767915039252,-3500.0,0.00016986,2]
[401087805,1767915039260,-5000.0,0.00016989,2]
[401087806,1767915039269,-100000.0,0.0001699,2]
[401087807,1767915039279,-50227.76823266,0.00017,2]
[401087808,1767915039289,-156358.86996262,0.0001701,3]
[401087809,1767915039298,-4000.0,0.00017108,2]
[401087810,1767915039308,-4000.0,0.00017534,2]
[401087811,1767915039317,-267.0,0.00017587,2]
[401087812,1767915039327,-531.92126105,0.00017656,2]
[401087813,1767915039336,-618.0,0.00017694,2]
[401087814,1767915039346,-150894.00766706,0.00018,2]
[401087815,1767915039356,-3120.51812043,0.00018,5]
[401087816,1767915039366,-4500.0,0.00018082,2]
[401087817,1767915039376,-429.24478812,0.00018193,2]
[401087818,1767915039386,-1000.0,0.00018211,2]
[401087819,1767915039397,-244.0,0.00018211,2]
[401087820,1767915039406,-5000.0,0.0001863,2]
[401087821,1767915039415,-125980.80402723,0.000189,5]
[401087822,1767915039425,-182.0,0.00018959,3]
[401087823,1767915039434,-356.47419888,0.00019,20]
[401087824,1767915039443,-5500.0,0.00019178,2]
[401087825,1767915039453,-498.42576809,0.00019205,5]
[401087826,1767915039462,-12531.5,0.000193,2]
[401087827,1767915039473,-163.0,0.000193,2]
[401087828,1767915039481,-162.88,0.000193,2]
[401087829,1767915039490,-904.83,0.000193,2]
[401087830,1767915039500,-170.598297,0.00019635,2]
[401087831,1767915039509,-3505.53140952,0.00019726,2]
[401087832,1767915039518,-300.00061585,0.0002,7]
[401087833,1767915039528,-77453.2393471,0.0002,2]
[401087834,1767915039537,-9636.5472526,0.0002,3]
[401087835,1767915039547,-1003.0,0.0002,2]
[401087836,1767915039556,-300.26582625,0.0002,2]
[401087837,1767915039566,-1000.0,0.00020032,2]
[401087838,1767915039575,-492.0,0.00020032,2]
[401087839,1767915039584,-167.4,0.000201,2]
[401087840,1767915039594,-479.41625686,0.00020193,2]
[401087841,1767915039603,-5753.35238325,0.00020386,2]
[401087842,1767915039613,-279.8,0.00020398,2]
[401087843,1767915039622,-1041.66666667,0.00020588,2]
[401087844,1767915039633,-599.999999,0.00021,2]
[401087845,1767915039642,-24790.43694266,0.00021,2]
[401087846,1767915039652,-169.0,0.00021151,4]
[401087847,1767915039661,-1039.02352417,0.000215,2]
[401087848,1767915039670,-12852.18434421,0.000215,2]
[401087849,1767915039680,-279.8,0.00021564,2]
[401087850,1767915039690,-4843.47004095,0.00022,20]
[401087851,1767915039699,-65900.90410388,0.00022,2]
[401087852,1767915039709,-518.09,0.00022,7]
[401087853,1767915039718,-1000.0,0.00022035,10]
[401087855,1767915039728,-791.0,0.00022035,10]
[401087856,1767915039737,-904.83,0.000221,14]
[401087857,1767915039746,-529.5877256,0.00022193,2]
[401087858,1767915039755,-2000.51544348,0.00022413,2]
[401087859,1767915039764,-2451.0153588,0.00022649,2]
[401087860,1767915039774,-279.8,0.00022729,2]
[401087861,1767915039783,-12531.5,0.000228,2]
[401087862,1767915039793,-2451.0153588,0.00022816,2]
[401087863,1767915039802,-413.18,0.000229,2]
[401087864,1767915039812,-1041.66666667,0.00023,3]
[401087865,1767915039821,-2451.0153588,0.00023056,2]
[401087866,1767915039832,-159.03608341,0.00023476,2]
[401087867,1767915039842,-205.54091976,0.00023476,2]
[401087868,1767915039852,-165.11814564,0.00023476,2]
[401087869,1767915039861,-2451.0153588,0.00023556,2]
[401087870,1767915039870,-2451.0153588,0.00023601,2]
[401087871,1767915039880,-518.09,0.000237,7]
[401087872,1767915039889,-205.54091976,0.00023758,17]
[401087873,1767915039898,-159.03608341,0.00023805,20]
[401087874,1767915039909,-2451.0153588,0.00023879,2]
[401087875,1767915039918,-171.0,0.0002389,11]
[401087876,1767915039927,-279.8,0.00023895,2]
[401087877,1767915039937,-205.54091976,0.00024041,32]
[401087878,1767915039946,-159.03608341,0.00024135,38]
[401087879,1767915039955,-452487.29550047,0.00024142,2]
[401087880,1767915039965,-2451.0153588,0.00024144,2]
[401087881,1767915039974,-579.75919435,0.00024193,2]
[401087882,1767915039984,-50264.40458466,0.000242,2]
[401087883,1767915039993,-170.598297,0.00024201,2]
[401087884,1767915040002,-1000.0,0.00024239,10]
[401087885,1767915040012,-1000.0,0.00024239,10]
[401087886,1767915040021,-205.54091976,0.00024323,48]
[401087887,1767915040031,-904.83,0.000244,14]
[401087888,1767915040042,-159.03608341,0.00024464,56]
[401087889,1767915040055,-2451.0153588,0.00024552,2]
[401087890,1767915040064,-205.54091976,0.00024606,63]
[401087891,1767915040075,-156750.63074783,0.0002465,2]
[401087892,1767915040085,-513.88250982,0.0002465,2]
[401087893,1767915040095,-380.0,0.00024658,2]
[401087894,1767915040106,-151.0,0.00024658,2]
[401087895,1767915040118,-151.0,0.00024658,2]
[401087896,1767915040128,-151.0,0.00024658,2]
[401087897,1767915040137,-2451.0153588,0.00024683,2]
[401087898,1767915040147,-6250.19122898,0.000247,2]
[401087899,1767915040156,-16824.61855787,0.00024774,2]
[401087900,1767915040165,-159.03608341,0.00024794,74]
[401087901,1767915040176,-79327.9103648,0.000248,2]
[401087902,1767915040185,-163.0,0.000248,7]
[401087903,1767915040194,-162.88,0.000248,7]
[401087904,1767915040204,-6610.65919707,0.0002488,2]
[401087905,1767915040213,-205.54091976,0.00024888,79]
[401087906,1767915040222,-206972.3060037,0.000249,2]
[401087907,1767915040236,-12518.66356696,0.000249,2]
[401087908,1767915040246,-3835.2393129,0.000249,2]
[401087909,1767915040612,-338.33450556,0.00015463,2]
[401087910,1767915040622,-570.06780908,0.00015463,2]
[401087911,1767915040631,-570.06780908,0.00015463,2]
[401087912,1767915040640,-570.06780908,0.00015463,2]
[401087913,1767915040649,-570.06780908,0.00015463,2]
[401087914,1767915040658,-570.06780908,0.00015463,2]
[401087915,1767915040667,-570.06780908,0.00015463,2]
[401087916,1767915040676,-18609.19424092,0.000249,2]
[401087917,1767915040687,-17211.74169287,0.000249,2]
[401087918,1767915040698,-485.49245402,0.000249,2]
[401088282,1767915045127,-570.06780908,0.00015463,2]
[401088284,1767915045136,-7.52146021,0.00015463,2]
[401088399,1767915046234,-562.54634887,0.00015463,2]
[401088401,1767915046244,-7554.17,0.0002489,10]
[401088403,1767915046253,-27110.17804857,0.000249,2]
[401088406,1767915046265,-4474.10388076,0.000249,2]
[401088488,1767916232417,-591.0,0.00012091,2]
[401088489,1767916232427,-235.40626398,0.00012091,2]
[401088490,1767916232437,-300.0,0.00012092,2]
[401088491,1767916232447,-250.29912421,0.00012092,2]
[401088493,1767916232459,-49.70087579,0.00012092,2]
[401088495,1767916232469,-300.0,0.00012092,2]
[401088497,1767916232478,-500.0,0.00012093,2]
[401088499,1767916232490,-442.02071686,0.00012093,2]
[401088501,1767916232500,-188.27843235,0.00012093,2]
[401088617,1767916238485,-242.72504927,0.00012093,2]
[401088618,1767916238497,-500.0,0.00012093,2]
[401088619,1767916238507,-500.0,0.00012093,2]
[401088620,1767916238517,-482.37934655,0.00012093,2]
[401088621,1767916238527,-370.93421304,0.00012093,2]
[401088622,1767916238537,-722.36028038,0.00012093,2]
[401088623,1767916238547,-722.36028038,0.00012093,2]
[401088624,1767916238556,-722.36028038,0.00012093,2]
[401088625,1767916238566,-722.36028038,0.00012093,2]
[401088626,1767916238576,-722.36028038,0.00012093,2]
[401088627,1767916238585,-722.36028038,0.00012093,2]
[401088628,1767916238743,-722.36028038,0.00012093,2]
[401088629,1767916238754,-722.36028038,0.00012093,2]
[401088630,1767916238764,-722.36028038,0.00012093,2]
[401088631,1767916238774,-722.36028038,0.00012093,2]
[401088632,1767916238783,-722.36028038,0.00012093,2]
[401088633,1767916238793,-722.36028038,0.00012093,2]
[401088634,1767916238802,-722.36028038,0.00012093,2]
[401088635,1767916238812,-751.25469159,0.00012093,2]
[401088636,1767916238822,-751.25469159,0.00012093,2]
[401088637,1767916238831,-751.25469159,0.00012093,2]
[401088638,1767916238842,-751.25469159,0.00012093,2]
[401088639,1767916238852,-751.25469159,0.00012093,2]
[401088640,1767916238861,-751.25469159,0.00012093,2]
[401088641,1767916238871,-751.25469159,0.00012093,2]
[401088642,1767916238881,-751.25469159,0.00012093,2]
[401088643,1767916238891,-751.25469159,0.00012093,2]
[401088644,1767916238901,-751.25469159,0.00012093,2]
[401088645,1767916238910,-822.31932457,0.00012093,2]
[401088646,1767916238920,-822.31932457,0.00012093,2]
[401088647,1767916238930,-822.31932457,0.00012093,2]
[401088648,1767916238939,-822.31932457,0.00012093,2]
[401088649,1767916238949,-822.31932457,0.00012093,2]
[401088650,1767916238960,-151.0,0.000121,2]
[401088651,1767916238969,-300.0,0.00012436,2]
[401088652,1767916238979,-300.0,0.00012436,2]
[401088653,1767916238989,-300.0,0.00012436,2]
[401088654,1767916238999,-300.0,0.00012436,2]
[401088655,1767916239008,-300.0,0.00012436,2]
[401088656,1767916239018,-300.0,0.00012436,2]
[401088657,1767916239028,-300.0,0.00012436,2]
[401088658,1767916239037,-300.0,0.00012436,2]
[401088659,1767916239046,-300.0,0.00012436,2]
[401088660,1767916239056,-300.0,0.00012436,2]
[401088661,1767916239066,-300.0,0.00012436,2]
[401088662,1767916239075,-300.0,0.00012436,2]
[401088663,1767916239084,-300.0,0.00012436,2]
[401088664,1767916239094,-300.0,0.00012436,2]
[401088665,1767916239103,-300.0,0.00012436,2]
[401088666,1767916239113,-600.0,0.00012684,2]
[401088667,1767916239123,-565.47530985,0.00013273,2]
[401088668,1767916239132,-500.0,0.00013273,2]
[401088669,1767916239142,-370.81882489,0.00013273,2]
[401088670,1767916239151,-420.0,0.00013273,2]
[401088671,1767916239161,-151.0,0.000134,2]
[401088672,1767916239171,-300.0,0.00013673,2]
[401088673,1767916239180,-526.70356569,0.00013699,2]
[401088674,1767916239190,-500.0,0.00013699,2]
[401088675,1767916239199,-500.0,0.00013699,2]
[401088676,1767916239209,-500.0,0.00013699,2]
[401088677,1767916239218,-581.49344817,0.00013821,2]
[401088678,1767916239227,-720.0,0.00013952,2]
[401088679,1767916239236,-277.7793915,0.00014091,2]
[401088680,1767916239245,-600.0,0.00014221,2]
[401088681,1767916239255,-1000.0,0.00014247,2]
[401088682,1767916239264,-1000.0,0.00014247,2]
[401088683,1767916239273,-1000.0,0.00014247,2]
[401088684,1767916239283,-403.0,0.0001457,2]
[401088685,1767916239292,-151.0,0.000147,2]
[401088686,1767916239301,-900.0,0.00014768,2]
[401088687,1767916239311,-1500.0,0.00014795,2]
[401088688,1767916239319,-1500.0,0.00014795,2]
[401088689,1767916239328,-1500.0,0.00014795,2]
[401088690,1767916239338,-800.0,0.00015068,2]
[401088691,1767916239347,-1200.0,0.00015316,2]
[401088692,1767916239356,-2000.0,0.00015342,2]
[401088693,1767916239366,-2000.0,0.00015342,2]
[401088694,1767916239375,-2000.0,0.00015342,2]
[401088695,1767916239383,-864.0,0.00015347,2]
[401088696,1767916239392,-1000.0,0.000154,2]
[401088697,1767916239401,-900.0,0.00015864,2]
[401088698,1767916239410,-1500.0,0.0001589,2]
[401088699,1767916239419,-1500.0,0.0001589,2]
[401088700,1767916239428,-1500.0,0.0001589,2]
[401088701,1767916239437,-151.0,0.000159,2]
[401088702,1767916239446,-320.15251902,0.00016091,2]
[401088703,1767916239456,-1600.0,0.00016164,2]
[401088704,1767916239466,-200.0,0.00016473,2]
[401088705,1767916239475,-1000.0,0.00016882,2]
[401088706,1767916239484,-151.0,0.000172,2]
[401088707,1767916239497,-2400.0,0.0001726,2]
[401088708,1767916239507,-479.78804727,0.00017842,2]
[401088709,1767916239516,-362.52564653,0.00018091,2]
[401088710,1767916239525,-1099.64931956,0.00018356,2]
[401088711,1767916239535,-151.0,0.000185,2]
[401088712,1767916239549,-1000.0,0.0001857,2]
[401088713,1767916239558,-244.0,0.0001857,2]
[401088714,1767916239568,-2422.09958586,0.000187,2]
[401088715,1767916239577,-2422.09958586,0.00019166,2]
[401088716,1767916239587,-2422.09958586,0.00019378,2]
[401088717,1767916239596,-2422.09958586,0.00019476,2]
[401088718,1767916239606,-264.19474322,0.00019534,3]
[401088719,1767916239616,-162.88,0.000196,2]
[401088720,1767916239625,-163.01,0.000196,2]
[401088721,1767916239634,-2422.09958586,0.00019775,2]
[401088722,1767916239644,-151.0,0.000198,2]
[401088723,1767916239653,-2422.09958586,0.00020075,2]
[401088724,1767916239662,-404.89877405,0.00020091,2]
[401088725,1767916239671,-1000.0,0.00020427,2]
[401088726,1767916239681,-492.0,0.00020427,2]
[401088727,1767916239691,-326.4,0.00020446,2]
[401088728,1767916239700,-2422.09958586,0.00020454,2]
[401088729,1767916239710,-1041.66666667,0.00020616,2]
[401088730,1767916239718,-2422.09958586,0.00020788,2]
[401088731,1767916239727,-6825.56,0.00020942,10]
[401088732,1767916239736,-2422.09958586,0.00020972,2]
[401088733,1767916239745,-151.0,0.000211,3]
[401088734,1767916239754,-2422.09958586,0.00021291,2]
[401088735,1767916239764,-2422.09958586,0.00021553,2]
[401088736,1767916239773,-326.4,0.00021607,2]
[401088737,1767916239782,-2422.09958586,0.00021803,2]
[401088738,1767916239792,-151.17138734,0.00021918,2]
[401088739,1767916239800,-447.27190157,0.00022091,2]
[401088740,1767916239810,-2422.09958586,0.00022147,2]
[401088741,1767916239820,-2422.09958586,0.0002227,2]
[401088742,1767916239829,-180.0,0.00022274,6]
[401088743,1767916239838,-499.59,0.000223,2]
[401088744,1767916239847,-414.47,0.000223,7]
[401088745,1767916239857,-151.0,0.000223,6]
[401088746,1767916239866,-151.0,0.000223,8]
[401088747,1767916239875,-1000.0,0.0002247,10]
[401088748,1767916239884,-791.0,0.0002247,10]
[401088749,1767916239893,-2422.09958586,0.00022664,2]
[401088750,1767916239902,-326.4,0.00022769,2]
[401088751,1767916239912,-2422.09958586,0.00022794,2]
[401088752,1767916239921,-2422.09958586,0.00023172,2]
[401088753,1767916239930,-2422.09958586,0.00023388,2]
[401088754,1767916239939,-151.0,0.000235,6]
[401088755,1767916239948,-151.0,0.000236,6]
[401088756,1767916239957,-2422.09958586,0.00023694,2]
[401088757,1767916239967,-326.4,0.0002393,2]
[401088758,1767916239976,-2422.09958586,0.00023963,2]
[401088759,1767916239985,-100000.0,0.0002399,2]
[401088760,1767916239995,-10000.0,0.00024,2]
[401088761,1767916240004,-1041.66666667,0.00024,10]
[401088762,1767916240014,-732.35,0.00024,14]
[401088763,1767916240023,-489.64502908,0.00024091,2]
[401088764,1767916240032,-2422.09958586,0.00024316,2]
[401088765,1767916240041,-289187.09335189,0.00024454,2]
[401088766,1767916240055,-31520.57553587,0.00024454,2]
[401088767,1767916240071,-1789.02028734,0.00024454,2]
[401089263,1767916246396,-300.0,0.00011181,2]
[401089265,1767916246406,-2.0,0.00024454,2]
[401089283,1767916366048,1000.0,0.0003013,120]
[401089284,1767916368768,254.79299583,0.00030137,120]
[401089287,1767916834518,202.42,0.00030136,120]
[401089288,1767916910485,517.95,0.00030136,120]
[401089895,1767917359060,155.0,5e-05,2]
[401089952,1767917432745,-999.0,0.00011739,2]
[401089954,1767917432754,-271.33254525,0.00011739,2]
[401089956,1767917432764,-585.0,0.00011739,2]
[401089957,1767917432774,-300.0,0.00011892,2]
[401089959,1767917432783,-301.70243713,0.00011892,2]
[401089961,1767917432792,-595.06526101,0.00011892,2]
[401089964,1767917432802,-595.06526101,0.00011892,2]
[401089966,1767917432811,-595.06526101,0.00011892,2]
[401089967,1767917432820,-595.06526101,0.00011892,2]
[401089970,1767917432830,-4807.01441107,0.00011893,2]
[401089972,1767917432846,-595.06526101,0.00011892,2]
[401089974,1767917432856,-41084.05386884,0.00011893,2]
[401090198,1767917438781,-595.06526101,0.00011892,2]
[401090199,1767917438791,-595.06526101,0.00011892,2]
[401090200,1767917438801,-595.06526101,0.00011892,2]
[401090201,1767917438810,-595.06526101,0.00011892,2]
[401090202,1767917438820,-595.06526101,0.00011892,2]
[401090203,1767917438830,-595.06526101,0.00011892,2]
[401090204,1767917438840,-595.06526101,0.00011892,2]
[401090205,1767917438849,-595.06526101,0.00011892,2]
[401090206,1767917438859,-296200.93366653,0.00011893,2]
[401090207,1767917438869,-300.0,0.00012231,2]
[401090208,1767917438879,-300.0,0.00012231,2]
[401090209,1767917438889,-300.0,0.00012231,2]
[401090210,1767917438898,-300.0,0.00012231,2]
[401090211,1767917438907,-300.0,0.00012231,2]
[401090212,1767917438917,-300.0,0.00012231,2]
[401090213,1767917438926,-300.0,0.00012231,2]
[401090214,1767917438937,-300.0,0.00012231,2]
[401090215,1767917438946,-300.0,0.00012231,2]
[401090216,1767917438955,-300.0,0.00012231,2]
[401090217,1767917438965,-300.0,0.00012231,2]
[401090218,1767917438974,-300.0,0.00012231,2]
[401090219,1767917438983,-300.0,0.00012231,2]
[401090220,1767917438995,-300.0,0.00012231,2]
[401090221,1767917439004,-300.0,0.00012231,2]
[401090222,1767917439014,-600.0,0.00012231,2]
[401090223,1767917439023,-9669.30580803,0.000129,2]
[401090224,1767917439033,-420.0,0.00013056,2]
[401090225,1767917439042,-500.0,0.00013273,2]
[401090226,1767917439051,-500.0,0.00013273,2]
[401090227,1767917439061,-500.0,0.00013273,2]
[401090228,1767917439070,-720.0,0.00013454,2]
[401090229,1767917439080,-1000.0,0.00013699,2]
[401090230,1767917439090,-500.0,0.00013699,2]
[401090231,1767917439099,-500.0,0.00013699,2]
[401090232,1767917439108,-500.0,0.00013699,2]
[401090233,1767917439118,-500.0,0.00013699,2]
[401090234,1767917439127,-500.0,0.00013699,2]
[401090235,1767917439136,-535.32110094,0.00013699,2]
[401090236,1767917439145,-500.0,0.00013699,2]
[401090237,1767917439154,-500.0,0.00013699,2]
[401090238,1767917439163,-501.43129902,0.00013699,2]
[401090239,1767917439172,-500.0,0.00013699,2]
[401090240,1767917439181,-500.61530681,0.00013699,2]
[401090241,1767917439191,-500.0,0.00013699,2]
[401090242,1767917439200,-500.0,0.00013699,2]
[401090243,1767917439209,-500.0,0.00013699,2]
[401090244,1767917439219,-500.0,0.00013699,2]
[401090245,1767917439228,-500.0,0.00013699,2]
[401090246,1767917439238,-320.17240339,0.00013739,2]
[401090247,1767917439247,-1000.0,0.00013821,2]
[401090248,1767917439256,-1000.0,0.00013821,2]
[401090249,1767917439266,-1000.0,0.00014247,2]
[401090250,1767917439276,-1000.0,0.00014247,2]
[401090251,1767917439285,-1000.0,0.00014247,2]
[401090252,1767917439442,-1000.0,0.00014247,2]
[401090253,1767917439452,-500.0,0.00014247,2]
[401090254,1767917439462,-1000.0,0.00014247,2]
[401090255,1767917439471,-1000.0,0.00014247,2]
[401090256,1767917439479,-501.67665627,0.00014247,2]
[401090257,1767917439490,-587.0,0.00014335,2]
[401090258,1767917439500,-1369.5151472,0.00014368,2]
[401090259,1767917439511,-1500.0,0.00014368,2]
[401090260,1767917439521,-5000.0,0.0001451,2]
[401090261,1767917439530,-1238.40393552,0.00014795,2]
[401090262,1767917439539,-1500.0,0.00014795,2]
[401090263,1767917439549,-1500.0,0.00014795,2]
[401090264,1767917439558,-500.0,0.00014795,2]
[401090265,1767917439567,-1500.81877837,0.00014795,2]
[401090266,1767917439576,-864.0,0.000148,2]
[401090267,1767917439585,-100000.0,0.00014882,2]
[401090268,1767917439595,-9669.30580798,0.00014883,2]
[401090269,1767917439603,-2000.0,0.00014916,2]
[401090270,1767917439612,-800.0,0.00015068,2]
[401090271,1767917439623,-2000.0,0.00015342,2]
[401090272,1767917439632,-2000.0,0.00015342,2]
[401090273,1767917439642,-2500.0,0.00015464,2]
[401090274,1767917439651,-823.0,0.00015738,2]
[401090275,1767917439661,-369.01226154,0.00015739,2]
[401090276,1767917439670,-2500.0,0.0001589,2]
[401090277,1767917439679,-2500.0,0.0001589,2]
[401090278,1767917439688,-3000.0,0.00016012,2]
[401090279,1767917439698,-1600.0,0.00016164,2]
[401090280,1767917439707,-1000.0,0.0001628,2]
[401090281,1767917439717,-3000.0,0.00016438,2]
[401090282,1767917439726,-3000.0,0.00016438,2]
[401090283,1767917439734,-3500.0,0.0001656,2]
[401090284,1767917439744,-2428.29582292,0.00016876,2]
[401090285,1767917439754,-1000.0,0.000169,2]
[401090286,1767917439763,-3505.53140952,0.00016986,2]
[401090287,1767917439773,-3500.0,0.00016986,2]
[401090288,1767917439783,-4000.0,0.00017108,2]
[401090289,1767917439792,-2428.29582292,0.00017186,2]
[401090290,1767917439801,-2400.0,0.0001726,2]
[401090291,1767917439811,-888.0,0.00017279,2]
[401090292,1767917439820,-5000.0,0.00017412,2]
[401090293,1767917439830,-4000.0,0.00017534,2]
[401090294,1767917439839,-4500.0,0.00017656,2]
[401090295,1767917439849,-417.85211968,0.00017739,2]
[401090296,1767917439859,-9669.30580798,0.00017874,2]
[401090297,1767917439869,-1000.0,0.00017908,2]
[401090298,1767917439878,-244.0,0.00017908,2]
[401090299,1767917439888,-4500.0,0.00018082,2]
[401090300,1767917439897,-5000.0,0.00018204,2]
[401090301,1767917439907,-1899.64931956,0.00018356,2]
[401090302,1767917439916,-267.0,0.00018563,2]
[401090303,1767917439926,-4667.21136956,0.0001863,2]
[401090304,1767917439935,-531.92126105,0.00018752,2]
[401090305,1767917439944,-5753.35238325,0.00018863,2]
[401090306,1767917439954,-207.0,0.00018986,3]
[401090307,1767917439963,-162.88,0.000194,2]
[401090308,1767917439972,-163.0,0.000194,2]
[401090309,1767917439982,-1000.0,0.00019698,2]
[401090310,1767917439993,-492.0,0.00019698,2]
[401090311,1767917440002,-814.35,0.000197,2]
[401090312,1767917440011,-466.69197783,0.00019739,2]
[401090313,1767917440020,-300.26582625,0.0002,2]
[401090314,1767917440031,-1003.0,0.0002,2]
[401090315,1767917440040,-217.6,0.00020506,2]
[401090316,1767917440050,-1041.66666667,0.0002064,2]
[401090317,1767917440059,-9669.30580798,0.00020865,2]
[401090318,1767917440069,-217.6,0.00021662,2]
[401090319,1767917440078,-1000.0,0.00021668,10]
[401090320,1767917440087,-791.0,0.00021668,10]
[401090321,1767917440096,-515.53183597,0.00021739,2]
[401090322,1767917440106,-2000.51544348,0.00022413,2]
[401090323,1767917440115,-217.6,0.00022818,2]
[401090324,1767917440124,-168.0,0.00022822,8]
[401090325,1767917440133,-449.63,0.000229,2]
[401090326,1767917440143,-564.37169412,0.00023739,2]
[401090327,1767917440152,-1000.0,0.00023835,10]
[401090328,1767917440161,-1000.0,0.00023835,10]
[401090329,1767917440170,-9669.30580798,0.00023856,2]
[401090330,1767917440179,-217.6,0.00023973,2]
[401090331,1767917440188,-304.54044341,0.00023999,2]
[401090332,1767917440198,-1218.16177366,0.00023999,2]
[401090333,1767917440207,-2740.86399073,0.00023999,2]
[401090334,1767917440218,-4872.64709464,0.00023999,2]
[401090335,1767917440227,-7613.51108537,0.00023999,2]
[401090336,1767917440236,-10952.49250697,0.00023999,2]
[401090337,1767917440246,-267.91093508,0.00023999,2]
[401090338,1767917440255,-1071.64374031,0.00023999,2]
[401090339,1767917440264,-2411.1984157,0.00023999,2]
[401090340,1767917440273,-4286.57496124,0.00023999,2]
[401090341,1767917440283,-6697.77337694,0.00023999,2]
[401090342,1767917440292,-9635.14886913,0.00023999,2]
[401090343,1767917440302,-1460.218623,0.00024041,2]
[401090344,1767917440312,-313.3645822,0.00024041,2]
[401090345,1767917440321,-2384.254941,0.00024041,2]
[401090346,1767917440330,-3570.0649883,0.00024041,2]
[401090347,1767917440339,-195.51554,0.00024041,2]
[401090348,1767917440348,-32382.136128,0.00024041,2]
[401090349,1767917440357,-1282.0301743,0.00024041,2]
[401090350,1767917440367,-814.35,0.000241,14]
[401090351,1767917440375,-162.88,0.000244,7]
[401090352,1767917440384,-163.0,0.000244,7]
[401090353,1767917440394,-56762.28503952,0.00024454,2]
[401090354,1767917440404,-347.0,0.00024454,3]
[401090355,1767917440413,-347.0,0.00024454,3]
[401090356,1767917440422,-347.0,0.00024454,3]
[401090357,1767917440431,-347.0,0.00024454,3]
[401090358,1767917440440,-336.0,0.00024454,3]
[401090359,1767917440451,-347.0,0.00024454,3]
[401090360,1767917440460,-336.0,0.00024454,3]
[401090361,1767917440469,-347.0,0.00024454,3]
[401090362,1767917440478,-347.0,0.00024454,3]
[401090363,1767917440487,-336.0,0.00024454,3]
[401090364,1767917440497,-347.0,0.00024454,3]
[401090365,1767917440507,-336.0,0.00024454,3]
[401090366,1767917440515,-347.0,0.00024454,3]
[401090367,1767917440524,-152.0,0.00024454,3]
[401090368,1767917440533,-347.0,0.00024454,3]
[401090371,1767917440543,-152.0,0.00024454,3]
[401090373,1767917440552,-336.0,0.00024454,3]
[401090374,1767917440560,-347.0,0.00024454,3]
[401090375,1767917440570,-152.0,0.00024454,3]